[Event "15th Governor Cup 2019"]
[Site "Khanty-Mansiysk"]
[Date "2019.11.21"]
[Round "4.12"]
[White "Pogosyan, Stefan"]
[Black "Skatchkov, Valery"]
[Result "1-0"]
[ECO "E17"]
[WhiteElo "2455"]
[BlackElo "2309"]
[Annotator "ChessBase"]
[PlyCount "115"]
[EventDate "2019.11.19"]
[EventType "swiss"]
[EventCountry "RUS"]
[SourceTitle "playchess.com"]
[Source "ChessBase"]
[SourceQuality "1"]
[TimeControl "5400+30"]

1. d4 {[%emt 0:00:00]} Nf6 {[%emt 0:00:00]} 2. c4 {[%emt 0:00:00]} e6 {[%emt 0:00:00]} 3. Nf3 {[%emt 0:00:00]} b6 {[%emt 0:00:00]} 4. g3 {[%emt 0:00:00]} Bb7 {[%emt 0:00:00]} 5. Bg2 {[%emt 0:00:00]} Be7 {[%emt 0:00:02]} 6. O-O {[%emt 0:00:00]} O-O {[%emt 0:00:04]} 7. Re1 {[%emt 0:00:00]} Na6 {[%emt 0:00:04]} 8. a3 {[%emt 0:00:55]} d5 {[%emt 0:18:15]} 9. cxd5 {[%emt 0:00:06]} exd5 {[%emt 0:00:11]} 10. Nc3 {[%emt 0:00:16]} c5 {[%emt 0:03:52]} 11. Bf4 {[%emt 0:02:18]} Nc7 {[%emt 0:01:35]} 12. Rc1 {[%emt 0:06:50]} Ne6 {[%emt 0:00:55]} 13. e3 {[%emt 0:00:54]} c4 {[%emt 0:17:52]} 14. h4 {[%emt 0:14:03]} a6 {[%emt 0:06:11]} 15. a4 {[%emt 0:00:22]} Qe8 {[%emt 0:18:01]} 16. Ne5 {[%emt 0:24:58]} b5 {[%emt 0:00:32]} 17. Bg5 {[%emt 0:01:58]} Rd8 {[%emt 0:05:18]} 18. axb5 {[%emt 0:04:23]} axb5 {[%emt 0:00:08]} 19. Ra1 {[%emt 0:00:08]} b4 {[%emt 0:00:49]} 20. Ra7 {[%emt 0:00:23]} Rb8 {[%emt 0:03:38]} 21. Rxb7 {[%emt 0:17:50]} Rxb7 {[%emt 0:01:00]} 22. Nxd5 {[%emt 0:00:06]} Nxd5 {[%emt 0:04:08]} 23. Bxd5 {[%emt 0:00:06]} Rc7 {[%emt 0:04:05]} 24. Bxe7 {[%emt 0:02:00]} Qxe7 {[%emt 0:00:07]} 25. Bxc4 {[%emt 0:00:43]} f6 {[%emt 0:05:38]} 26. d5 {[%emt 0:08:02]} Rd8 {[%emt 0:00:05]} 27. Qe2 {[%emt 0:00:59]} fxe5 {[%emt 0:00:23]} 28. dxe6 {[%emt 0:00:05]} g6 {[%emt 0:00:59]} 29. b3 {[%emt 0:00:25]} Kg7 {[%emt 0:01:41]} 30. Ra1 {[%emt 0:03:12]} h5 {[%emt 0:01:14]} 31. Qb2 {[%emt 0:05:17]} Qc5 {[%emt 0:00:58]} 32. Qc2 {[%emt 0:02:52]} Qc6 {[%emt 0:02:06]} 33. Rd1 {[%emt 0:03:31]} Rxd1+ {[%emt 0:01:27]} 34. Qxd1 {[%emt 0:00:04]} Ra7 {[%emt 0:00:12]} 35. Bd5 {[%emt 0:01:26]} Qd6 {[%emt 0:00:16]} 36. Qf3 {[%emt 0:00:16]} Rc7 {[%emt 0:00:22]} 37. Kg2 {[%emt 0:00:39]} Re7 {[%emt 0:00:34]} 38. Qe4 {[%emt 0:00:24]} Rc7 {[%emt 0:00:29]} 39. Qf3 {[%emt 0:00:03]} Ra7 {[%emt 0:01:04]} 40. Bc4 {[%emt 0:00:16]} Rc7 {[%emt 0:00:22]} 41. Qe4 {[%emt 0:01:25]} Qc6 {[%emt 0:00:18]} 42. Bd5 {[%emt 0:01:05]} Qd6 {[%emt 0:00:04]} 43. Kf3 {[%emt 0:00:20]} Kf6 {[%emt 0:00:53]} 44. Kg2 {[%emt 0:00:15]} Kg7 {[%emt 0:00:26]} 45. Kh2 {[%emt 0:01:01]} Kf6 {[%emt 0:00:25]} 46. Qf3+ {[%emt 0:00:31]} Kg7 {[%emt 0:00:05]} 47. Bc4 {[%emt 0:00:07]} Qd2 {[%emt 0:01:16]} 48. Kg1 {[%emt 0:00:35]} Qd8 {[%emt 0:01:53]} 49. Qe4 {[%emt 0:01:04]} Qd6 {[%emt 0:00:23]} 50. Qa8 {[%emt 0:00:35]} Re7 {[%emt 0:02:55]} 51. Kg2 {[%emt 0:00:37]} Rc7 {[%emt 0:00:32]} 52. e4 {[%emt 0:01:02]} Qe7 {[%emt 0:00:58]} 53. Qb8 {[%emt 0:01:08]} Kh7 {[%emt 0:00:36]} 54. Qb5 {[%emt 0:00:31]} Qd6 {[%emt 0:00:17]} 55. Qd5 {[%emt 0:00:27]} Qxd5 {[%emt 0:01:03]} 56. exd5 {[%emt 0:00:05]} Rxc4 {[%emt 0:00:05]} 57. e7 {[%emt 0:00:10]} Rc8 {[%emt 0:00:04]} 58. d6 1-0

[Event "15th Governor Cup 2019"]
[Site "Khanty-Mansiysk"]
[Date "2019.11.21"]
[Round "4.13"]
[White "Maltsevskaya, Aleksandra"]
[Black "Remizov, Yaroslav"]
[Result "1/2-1/2"]
[ECO "B00"]
[WhiteElo "2332"]
[BlackElo "2394"]
[Annotator "ChessBase"]
[PlyCount "57"]
[EventDate "2019.11.19"]
[EventType "swiss"]
[EventCountry "RUS"]
[SourceTitle "playchess.com"]
[Source "ChessBase"]
[SourceQuality "1"]
[TimeControl "5400+30"]

1. e4 {[%emt 0:00:00]} d6 {[%emt 0:00:00]} 2. d4 {[%emt 0:00:43]} Nf6 {[%emt 0:00:00]} 3. Bd3 {[%emt 0:00:15]} e5 {[%emt 0:00:00]} 4. Nf3 {[%emt 0:00:44]} exd4 {[%emt 0:00:57]} 5. Nxd4 {[%emt 0:00:09]} g6 {[%emt 0:00:21]} 6. Qe2 {[%emt 0:05:11]} Bg7 {[%emt 0:04:18]} 7. e5 {[%emt 0:07:30]} dxe5 {[%emt 0:03:25]} 8. Qxe5+ {[%emt 0:00:06]} Qe7 {[%emt 0:01:29]} 9. Qxe7+ {[%emt 0:00:06]} Kxe7 {[%emt 0:00:04]} 10. Nc3 {[%emt 0:01:12]} Rd8 {[%emt 0:25:24]} 11. Ndb5 {[%emt 0:01:00]} Na6 {[%emt 0:03:10]} 12. Bf4 {[%emt 0:01:03]} c6 {[%emt 0:21:32]} 13. Nc7 {[%emt 0:00:42]} Nxc7 {[%emt 0:01:21]} 14. Bxc7 {[%emt 0:00:07]} Re8 {[%emt 0:03:52]} 15. O-O-O {[%emt 0:02:08]} Kf8 {[%emt 0:00:24]} 16. Rhe1 {[%emt 0:04:23]} Rxe1 {[%emt 0:02:24]} 17. Rxe1 {[%emt 0:00:07]} Be6 {[%emt 0:00:22]} 18. f3 {[%emt 0:01:05]} Nd5 {[%emt 0:02:37]} 19. Nxd5 {[%emt 0:00:39]} Bxd5 {[%emt 0:00:09]} 20. c4 {[%emt 0:04:27]} Be6 {[%emt 0:00:48]} 21. Bd6+ {[%emt 0:00:13]} Kg8 {[%emt 0:00:41]} 22. Be5 {[%emt 0:00:07]} Re8 {[%emt 0:05:15]} 23. Bxg7 {[%emt 0:00:20]} Kxg7 {[%emt 0:00:02]} 24. Kd2 {[%emt 0:00:27]} Kf6 {[%emt 0:01:40]} 25. Kc3 {[%emt 0:00:29]} Rd8 {[%emt 0:02:57]} 26. Re2 {[%emt 0:01:32]} Rd7 {[%emt 0:01:36]} 27. Re1 {[%emt 0:00:15]} Rd8 {[%emt 0:00:04]} 28. Re2 {[%emt 0:00:06]} Rd7 {[%emt 0:00:04]} 29. Re1 {[%emt 0:00:05] Ke5} 1/2-1/2

[Event "15th Governor Cup 2019"]
[Site "Khanty-Mansiysk"]
[Date "2019.11.21"]
[Round "4.14"]
[White "Obgolts, Erik"]
[Black "Shafigullina, Zarina"]
[Result "1/2-1/2"]
[ECO "A46"]
[WhiteElo "2371"]
[BlackElo "2295"]
[Annotator "ChessBase"]
[PlyCount "111"]
[EventDate "2019.11.19"]
[EventType "swiss"]
[EventCountry "RUS"]
[SourceTitle "playchess.com"]
[Source "ChessBase"]
[SourceQuality "1"]
[TimeControl "5400+30"]

1. d4 {[%emt 0:00:00]} Nf6 {[%emt 0:00:00]} 2. Nf3 {[%emt 0:00:00]} e6 {[%emt 0:00:00]} 3. Bf4 {[%emt 0:00:00]} c5 {[%emt 0:00:00]} 4. e3 {[%emt 0:00:03]} b6 {[%emt 0:00:00]} 5. Nbd2 {[%emt 0:01:03]} Bb7 {[%emt 0:00:14]} 6. c3 {[%emt 0:00:38]} Be7 {[%emt 0:01:05]} 7. h3 {[%emt 0:02:05]} d6 {[%emt 0:01:21]} 8. Bd3 {[%emt 0:04:22]} Nbd7 {[%emt 0:00:29]} 9. Qe2 {[%emt 0:01:08]} cxd4 {[%emt 0:00:56]} 10. exd4 {[%emt 0:00:18]} O-O {[%emt 0:01:04]} 11. O-O {[%emt 0:01:07]} Qc7 {[%emt 0:02:04]} 12. Ba6 {[%emt 0:05:55]} Bc6 {[%emt 0:02:03]} 13. a4 {[%emt 0:02:27]} Rfe8 {[%emt 0:01:56]} 14. Rfe1 {[%emt 0:04:36]} Bf8 {[%emt 0:00:40]} 15. Bh2 {[%emt 0:01:49]} Rad8 {[%emt 0:04:07]} 16. Qc4 {[%emt 0:04:35]} Nb8 {[%emt 0:04:43]} 17. Bb5 {[%emt 0:00:05]} Qb7 {[%emt 0:00:11]} 18. a5 {[%emt 0:06:06]} Rc8 {[%emt 0:08:59]} 19. Bxc6 {[%emt 0:06:41]} Rxc6 {[%emt 0:03:23]} 20. Qb3 {[%emt 0:01:31]} Nbd7 {[%emt 0:06:45]} 21. a6 {[%emt 0:08:00]} Qc8 {[%emt 0:01:19]} 22. Qb5 {[%emt 0:02:12]} d5 {[%emt 0:07:08]} 23. Rac1 {[%emt 0:08:03]} Rd8 {[%emt 0:06:12]} 24. c4 {[%emt 0:03:22]} dxc4 {[%emt 0:04:00]} 25. Nxc4 {[%emt 0:01:11]} Qa8 {[%emt 0:00:43]} 26. Ne3 {[%emt 0:04:36]} Rdc8 {[%emt 0:01:09]} 27. Rcd1 {[%emt 0:00:37]} Bd6 {[%emt 0:03:41]} 28. Ne5 {[%emt 0:07:37]} Nxe5 {[%emt 0:05:54]} 29. Bxe5 {[%emt 0:01:09]} Bxe5 {[%emt 0:02:52]} 30. Qxe5 {[%emt 0:00:12]} Rd8 {[%emt 0:03:45]} 31. Rd3 {[%emt 0:07:10]} Nd5 {[%emt 0:05:04]} 32. Ng4 {[%emt 0:02:04]} Ne7 {[%emt 0:01:29]} 33. Qg5 {[%emt 0:01:40]} Ng6 {[%emt 0:00:39]} 34. Ne3 {[%emt 0:05:13]} h6 {[%emt 0:01:38]} 35. Qg3 {[%emt 0:00:41]} Rcd6 {[%emt 0:03:41]} 36. d5 {[%emt 0:02:54]} exd5 {[%emt 0:04:18]} 37. Nf5 {[%emt 0:00:20]} Rf6 {[%emt 0:00:32]} 38. Rf3 {[%emt 0:02:48]} Kh7 {[%emt 0:00:52]} 39. Nd4 {[%emt 0:00:57]} Rxf3 {[%emt 0:02:11]} 40. Qxf3 {[%emt 0:00:08]} Kg8 {[%emt 0:00:05]} 41. b4 {[%emt 0:01:07]} Re8 {[%emt 0:06:33]} 42. Rc1 {[%emt 0:01:11]} Ne5 {[%emt 0:03:17]} 43. Qf5 {[%emt 0:00:19]} Nc4 {[%emt 0:00:21]} 44. b5 {[%emt 0:00:23]} Qd8 {[%emt 0:04:04]} 45. Nc6 {[%emt 0:00:22]} Qd6 {[%emt 0:00:05]} 46. Nxa7 {[%emt 0:00:41]} d4 {[%emt 0:00:42]} 47. Qd3 {[%emt 0:02:21]} Ne5 {[%emt 0:00:29]} 48. Qg3 {[%emt 0:01:34]} d3 {[%emt 0:00:09]} 49. Rd1 {[%emt 0:00:26]} d2 {[%emt 0:00:31]} 50. Kh2 {[%emt 0:00:34]} Qd7 {[%emt 0:01:06]} 51. Nc6 {[%emt 0:00:14]} Nxc6 {[%emt 0:00:29]} 52. bxc6 {[%emt 0:00:04]} Qxc6 {[%emt 0:00:11]} 53. Rxd2 {[%emt 0:00:16]} Qa4 {[%emt 0:00:08]} 54. Rd6 {[%emt 0:01:20]} Qxa6 {[%emt 0:00:28]} 55. Rxh6 {[%emt 0:00:31]} Qb7 {[%emt 0:00:26]} 56. Rh4 {[%emt 0:00:11]} 1/2-1/2

[Event "15th Governor Cup 2019"]
[Site "Khanty-Mansiysk"]
[Date "2019.11.21"]
[Round "4.16"]
[White "Lysenko, Margarita"]
[Black "Belyakov, Bogdan"]
[Result "1-0"]
[ECO "D70"]
[WhiteElo "2243"]
[BlackElo "2495"]
[Annotator "ChessBase"]
[PlyCount "109"]
[EventDate "2019.11.19"]
[EventType "swiss"]
[EventCountry "RUS"]
[SourceTitle "playchess.com"]
[Source "ChessBase"]
[SourceQuality "1"]
[TimeControl "5400+30"]

1. d4 {[%emt 0:00:00]} Nf6 {[%emt 0:00:00]} 2. c4 {[%emt 0:00:00]} g6 {[%emt 0:00:00]} 3. Nf3 {[%emt 0:00:00]} Bg7 {[%emt 0:00:00]} 4. g3 {[%emt 0:00:00]} O-O {[%emt 0:00:00]} 5. Bg2 {[%emt 0:00:05]} d6 {[%emt 0:00:00]} 6. O-O {[%emt 0:00:10]} c5 {[%emt 0:00:00]} 7. dxc5 {[%emt 0:00:15]} dxc5 {[%emt 0:00:00]} 8. Ne5 {[%emt 0:00:10]} Qc7 {[%emt 0:02:49]} 9. Nd3 {[%emt 0:00:25]} Be6 {[%emt 0:00:12]} 10. Na3 {[%emt 0:00:12]} Qc8 {[%emt 0:04:09]} 11. Be3 {[%emt 0:00:39]} Bh3 {[%emt 0:05:23]} 12. Bxc5 {[%emt 0:02:30]} Bxg2 {[%emt 0:00:27]} 13. Kxg2 {[%emt 0:00:06]} Nc6 {[%emt 0:00:33]} 14. f3 {[%emt 0:04:16]} Rd8 {[%emt 0:02:04]} 15. Qc2 {[%emt 0:06:40]} b6 {[%emt 0:03:06]} 16. Bf2 {[%emt 0:10:12]} Qb7 {[%emt 0:01:54]} 17. Kg1 {[%emt 0:11:51]} e5 {[%emt 0:04:46]} 18. e4 {[%emt 0:05:48]} Nd7 {[%emt 0:00:44]} 19. Nb5 {[%emt 0:03:11]} Nf8 {[%emt 0:01:40]} 20. Nc3 {[%emt 0:03:05]} Ne6 {[%emt 0:00:14]} 21. Nd5 {[%emt 0:08:14]} h5 {[%emt 0:02:41]} 22. Be3 {[%emt 0:04:28]} Rac8 {[%emt 0:02:42]} 23. Qf2 {[%emt 0:05:06]} Rf8 {[%emt 0:00:51]} 24. g4 {[%emt 0:08:51]} f5 {[%emt 0:02:39]} 25. gxf5 {[%emt 0:02:45]} gxf5 {[%emt 0:01:07]} 26. Qh4 {[%emt 0:00:19]} Qf7 {[%emt 0:05:08]} 27. Rf2 {[%emt 0:03:34]} Kh7 {[%emt 0:02:26]} 28. Kh1 {[%emt 0:02:03]} Ncd4 {[%emt 0:03:12]} 29. Bxd4 {[%emt 0:03:07]} Nxd4 {[%emt 0:00:11]} 30. Rg1 {[%emt 0:01:01]} Ne6 {[%emt 0:03:12]} 31. Rfg2 {[%emt 0:09:46]} Rce8 {[%emt 0:05:24]} 32. Rg6 {[%emt 0:01:05]} Qxg6 {[%emt 0:03:02]} 33. Rxg6 {[%emt 0:00:05]} Kxg6 {[%emt 0:00:05]} 34. Ne7+ {[%emt 0:01:16]} Kf7 {[%emt 0:00:23]} 35. Nxf5 {[%emt 0:00:09]} Kg8 {[%emt 0:01:11]} 36. Qxh5 {[%emt 0:00:46]} Bf6 {[%emt 0:00:50]} 37. Qg4+ {[%emt 0:04:51]} Kh7 {[%emt 0:04:35]} 38. Qh3+ {[%emt 0:00:16]} Kg8 {[%emt 0:00:47]} 39. Qg3+ {[%emt 0:00:11]} Kh7 {[%emt 0:01:07]} 40. Nxe5 {[%emt 0:00:47]} Bxe5 {[%emt 0:02:09]} 41. Qxe5 {[%emt 0:00:09]} Kg6 {[%emt 0:03:17]} 42. h4 {[%emt 0:01:15]} Rh8 {[%emt 0:02:03]} 43. Kg1 {[%emt 0:00:49]} Rh5 {[%emt 0:02:37]} 44. Kf2 {[%emt 0:00:33]} Rhh8 {[%emt 0:00:06]} 45. b4 {[%emt 0:00:36]} Rh7 {[%emt 0:00:34]} 46. Nd6 {[%emt 0:00:42]} Ree7 {[%emt 0:00:15]} 47. Qf5+ {[%emt 0:00:26]} Kh6 {[%emt 0:00:19]} 48. Qg4 {[%emt 0:00:17]} Rhg7 {[%emt 0:00:36]} 49. Nf5+ {[%emt 0:00:11]} Kh7 {[%emt 0:00:16]} 50. Nxg7 {[%emt 0:00:19]} Nxg7 {[%emt 0:00:09]} 51. c5 {[%emt 0:00:30]} bxc5 {[%emt 0:00:07]} 52. bxc5 {[%emt 0:00:05]} Re5 {[%emt 0:00:05]} 53. c6 {[%emt 0:00:09]} Rc5 {[%emt 0:00:03]} 54. Qd7 {[%emt 0:00:06]} Rc2+ {[%emt 0:00:32]} 55. Ke3 {[%emt 0:00:10]} 1-0

[Event "15th Governor Cup 2019"]
[Site "Khanty-Mansiysk"]
[Date "2019.11.21"]
[Round "4.17"]
[White "Mochalin, Faddey"]
[Black "Chekletsov, Ilya"]
[Result "1/2-1/2"]
[ECO "B77"]
[WhiteElo "2188"]
[BlackElo "2386"]
[Annotator "ChessBase"]
[PlyCount "106"]
[EventDate "2019.11.19"]
[EventType "swiss"]
[EventCountry "RUS"]
[SourceTitle "playchess.com"]
[Source "ChessBase"]
[SourceQuality "1"]
[TimeControl "5400+30"]

1. e4 {[%emt 0:00:00]} c5 {[%emt 0:00:00]} 2. Nf3 {[%emt 0:00:00]} d6 {[%emt 0:00:00]} 3. d4 {[%emt 0:00:00]} cxd4 {[%emt 0:00:00]} 4. Nxd4 {[%emt 0:00:02]} Nf6 {[%emt 0:00:01]} 5. Nc3 {[%emt 0:00:10]} g6 {[%emt 0:00:07]} 6. Be3 {[%emt 0:00:09]} Bg7 {[%emt 0:00:05]} 7. f3 {[%emt 0:00:17]} O-O {[%emt 0:00:07]} 8. Qd2 {[%emt 0:00:11]} Nc6 {[%emt 0:00:05]} 9. Bc4 {[%emt 0:00:09]} Bd7 {[%emt 0:00:05]} 10. Bb3 {[%emt 0:00:32]} Na5 {[%emt 0:02:10]} 11. O-O-O {[%emt 0:02:11]} Nxb3+ {[%emt 0:00:05]} 12. cxb3 {[%emt 0:03:53]} Qb8 {[%emt 0:00:05]} 13. h4 {[%emt 0:01:22]} b5 {[%emt 0:00:14]} 14. Kb1 {[%emt 0:02:14]} Rc8 {[%emt 0:00:07]} 15. g4 {[%emt 0:02:06]} b4 {[%emt 0:08:30]} 16. Nd5 {[%emt 0:02:17]} Nxd5 {[%emt 0:02:02]} 17. exd5 {[%emt 0:00:07]} a5 {[%emt 0:00:04]} 18. h5 {[%emt 0:06:14]} a4 {[%emt 0:00:31]} 19. hxg6 {[%emt 0:03:22]} fxg6 {[%emt 0:00:11]} 20. Nc6 {[%emt 0:25:10]} Bxc6 {[%emt 0:04:47]} 21. dxc6 {[%emt 0:00:23]} Qb5 {[%emt 0:00:04]} 22. Qh2 {[%emt 0:07:50]} h5 {[%emt 0:00:25]} 23. Qc2 {[%emt 0:02:56]} axb3 {[%emt 0:25:02]} 24. Qxb3+ {[%emt 0:20:29]} Kf8 {[%emt 0:00:06]} 25. gxh5 {[%emt 0:05:50]} Qf5+ {[%emt 0:02:10]} 26. Qd3 {[%emt 0:09:35]} Qf7 {[%emt 0:09:10]} 27. Qd5 {[%emt 0:04:27]} gxh5 {[%emt 0:01:22]} 28. Rxh5 {[%emt 0:01:26]} Qxd5 {[%emt 0:00:57]} 29. Rhxd5 {[%emt 0:00:34]} Rxc6 {[%emt 0:00:06]} 30. Bd4 {[%emt 0:00:28]} Bxd4 {[%emt 0:05:04]} 31. R5xd4 {[%emt 0:00:11]} Rca6 {[%emt 0:01:14]} 32. Rxb4 {[%emt 0:00:37]} Rxa2 {[%emt 0:00:04]} 33. Rd2 {[%emt 0:00:45]} R2a4 {[%emt 0:00:52]} 34. Rb7 {[%emt 0:00:31]} Ra1+ {[%emt 0:01:16]} 35. Kc2 {[%emt 0:00:08]} Rc8+ {[%emt 0:00:04]} 36. Kd3 {[%emt 0:00:29]} Re1 {[%emt 0:00:34]} 37. b4 {[%emt 0:00:53]} Rcc1 {[%emt 0:01:30]} 38. Re2 {[%emt 0:00:30]} Rxe2 {[%emt 0:01:10]} 39. Kxe2 {[%emt 0:00:05]} Rc3 {[%emt 0:00:02]} 40. b5 {[%emt 0:00:50]} Rb3 {[%emt 0:00:05]} 41. Kf2 {[%emt 0:00:35]} Kf7 {[%emt 0:00:07]} 42. Rb8 {[%emt 0:00:30]} Ke6 {[%emt 0:00:51]} 43. Rb7 {[%emt 0:00:28]} Kf6 {[%emt 0:00:35]} 44. b6 {[%emt 0:00:32]} e5 {[%emt 0:00:15]} 45. Rb8 {[%emt 0:00:30]} Ke6 {[%emt 0:00:04]} 46. Ke2 {[%emt 0:00:31]} Kd5 {[%emt 0:00:07]} 47. b7 {[%emt 0:00:15]} Kc6 {[%emt 0:00:30]} 48. f4 {[%emt 0:00:37]} Rxb7 {[%emt 0:01:50]} 49. Rxb7 {[%emt 0:00:15]} Kxb7 {[%emt 0:00:04]} 50. fxe5 {[%emt 0:00:07]} dxe5 {[%emt 0:00:05]} 51. Kd3 {[%emt 0:00:05]} Kc6 {[%emt 0:00:02]} 52. Ke4 {[%emt 0:00:06]} Kd6 {[%emt 0:00:03]} 53. Ke3 {[%emt 0:00:06]} Kd5 {[%emt 0:00:22] Ke4+} 1/2-1/2

[Event "15th Governor Cup 2019"]
[Site "Khanty-Mansiysk"]
[Date "2019.11.21"]
[Round "4.18"]
[White "Guseva, Marina"]
[Black "Skvortsov, Andrey"]
[Result "1-0"]
[ECO "D80"]
[WhiteElo "2366"]
[BlackElo "2137"]
[Annotator "ChessBase"]
[PlyCount "119"]
[EventDate "2019.11.19"]
[EventType "swiss"]
[EventCountry "RUS"]
[SourceTitle "playchess.com"]
[Source "ChessBase"]
[SourceQuality "1"]
[TimeControl "5400+30"]

1. d4 {[%emt 0:00:00]} Nf6 {[%emt 0:00:00]} 2. c4 {[%emt 0:00:00]} g6 {[%emt 0:00:33]} 3. Nc3 {[%emt 0:00:00]} d5 {[%emt 0:00:04]} 4. Bg5 {[%emt 0:00:00]} Ne4 {[%emt 0:00:06]} 5. Bh4 {[%emt 0:00:04]} Nxc3 {[%emt 0:00:32]} 6. bxc3 {[%emt 0:00:04]} dxc4 {[%emt 0:00:43]} 7. e3 {[%emt 0:00:05]} Bg7 {[%emt 0:01:31]} 8. Bxc4 {[%emt 0:00:08]} c5 {[%emt 0:01:07]} 9. Nf3 {[%emt 0:01:53]} cxd4 {[%emt 0:01:35]} 10. cxd4 {[%emt 0:00:06]} Qa5+ {[%emt 0:00:27]} 11. Nd2 {[%emt 0:05:40]} Nc6 {[%emt 0:07:10]} 12. O-O {[%emt 0:00:18]} O-O {[%emt 0:00:43]} 13. Rc1 {[%emt 0:06:08]} e6 {[%emt 0:01:27]} 14. Bb3 {[%emt 0:08:51]} Qb4 {[%emt 0:06:19]} 15. Ne4 {[%emt 0:00:30]} e5 {[%emt 0:01:26]} 16. Rb1 {[%emt 0:16:35]} Qa3 {[%emt 0:09:42]} 17. d5 {[%emt 0:00:34]} Na5 {[%emt 0:08:30]} 18. d6 {[%emt 0:00:09]} Bf5 {[%emt 0:00:41]} 19. Bd5 {[%emt 0:01:52]} Bxe4 {[%emt 0:12:12]} 20. Bxe4 {[%emt 0:00:04]} f6 {[%emt 0:00:07]} 21. Bxb7 {[%emt 0:03:29]} Rad8 {[%emt 0:01:13]} 22. d7 {[%emt 0:02:05]} Nxb7 {[%emt 0:01:32]} 23. Rxb7 {[%emt 0:03:53]} Qxa2 {[%emt 0:00:08]} 24. f4 {[%emt 0:06:25]} Qe6 {[%emt 0:14:03]} 25. Qa4 {[%emt 0:04:20]} Rf7 {[%emt 0:00:47]} 26. Rd1 {[%emt 0:00:03]} Bf8 {[%emt 0:03:37]} 27. fxe5 {[%emt 0:02:55]} Qxe5 {[%emt 0:00:28]} 28. Bg3 {[%emt 0:09:18]} Qxe3+ {[%emt 0:00:24]} 29. Bf2 {[%emt 0:00:06]} Qe6 {[%emt 0:00:46]} 30. Qd4 {[%emt 0:08:04]} a5 {[%emt 0:02:58]} 31. Qb6 {[%emt 0:04:10]} Qg4 {[%emt 0:01:46]} 32. Rd4 {[%emt 0:00:05]} Qg5 {[%emt 0:00:04]} 33. h4 {[%emt 0:01:26]} Qc1+ {[%emt 0:00:02]} 34. Kh2 {[%emt 0:00:03]} Be7 {[%emt 0:00:05]} 35. Rb8 {[%emt 0:04:19]} Rff8 {[%emt 0:01:47]} 36. Qe6+ {[%emt 0:00:59]} Rf7 {[%emt 0:03:27]} 37. Qxe7 {[%emt 0:08:35]} Rxb8 {[%emt 0:01:30]} 38. d8=Q+ {[%emt 0:00:09]} Rxd8 {[%emt 0:00:04]} 39. Qxd8+ {[%emt 0:00:26]} Kg7 {[%emt 0:00:06]} 40. Qxa5 {[%emt 0:00:38]} Qc7+ {[%emt 0:00:13]} 41. Qxc7 {[%emt 0:00:07]} Rxc7 {[%emt 0:00:35]} 42. Rd6 {[%emt 0:01:37]} f5 {[%emt 0:01:02]} 43. Be3 {[%emt 0:01:13]} Re7 {[%emt 0:01:10]} 44. Bg5 {[%emt 0:00:31]} Rb7 {[%emt 0:00:33]} 45. Re6 {[%emt 0:00:11]} Kf7 {[%emt 0:00:07]} 46. Rc6 {[%emt 0:00:05]} Kg7 {[%emt 0:02:07]} 47. Bf4 {[%emt 0:00:03]} Rb4 {[%emt 0:00:21]} 48. Rc7+ {[%emt 0:00:04]} Kg8 {[%emt 0:00:13]} 49. g3 {[%emt 0:00:05]} Rb2+ {[%emt 0:00:40]} 50. Kh3 {[%emt 0:00:03]} Re2 {[%emt 0:00:05]} 51. Bh6 {[%emt 0:00:04]} Re8 {[%emt 0:00:24]} 52. Kg2 {[%emt 0:00:06]} Kh8 {[%emt 0:00:29]} 53. Kf3 {[%emt 0:00:18]} Kg8 {[%emt 0:00:04]} 54. Bd2 {[%emt 0:00:48]} Re6 {[%emt 0:00:56]} 55. Bh6 {[%emt 0:00:41]} Re8 {[%emt 0:00:03]} 56. Kf4 {[%emt 0:00:11]} Re4+ {[%emt 0:00:10]} 57. Kg5 {[%emt 0:00:06]} Re8 {[%emt 0:00:19]} 58. Kf6 {[%emt 0:00:12]} Ra8 {[%emt 0:00:28]} 59. Ke7 {[%emt 0:00:08]} Rb8 {[%emt 0:00:15]} 60. Rd7 {[%emt 0:00:14]} 1-0

[Event "15th Governor Cup 2019"]
[Site "Khanty-Mansiysk"]
[Date "2019.11.21"]
[Round "4.19"]
[White "Najdin, Danil"]
[Black "Ryabov, Georgi"]
[Result "1-0"]
[ECO "E91"]
[WhiteElo "2357"]
[BlackElo "1887"]
[Annotator "ChessBase"]
[PlyCount "81"]
[EventDate "2019.11.19"]
[EventType "swiss"]
[EventCountry "RUS"]
[SourceTitle "playchess.com"]
[Source "ChessBase"]
[SourceQuality "1"]
[TimeControl "5400+30"]

1. d4 {[%emt 0:00:05]} Nf6 {[%emt 0:00:19]} 2. c4 {[%emt 0:00:12]} g6 {[%emt 0:00:11]} 3. Nc3 {[%emt 0:00:43]} Bg7 {[%emt 0:00:33]} 4. e4 {[%emt 0:00:19]} d6 {[%emt 0:00:08]} 5. Nf3 {[%emt 0:01:01]} O-O {[%emt 0:00:13]} 6. Be2 {[%emt 0:00:33]} Nbd7 {[%emt 0:01:14]} 7. O-O {[%emt 0:00:23]} c5 {[%emt 0:00:05]} 8. d5 {[%emt 0:01:08]} Ne8 {[%emt 0:00:40]} 9. Bf4 {[%emt 0:02:15]} Ne5 {[%emt 0:02:01]} 10. Nxe5 {[%emt 0:00:50]} dxe5 {[%emt 0:00:13]} 11. Be3 {[%emt 0:00:08]} b6 {[%emt 0:00:10]} 12. a3 {[%emt 0:00:47]} Nd6 {[%emt 0:09:30]} 13. b4 {[%emt 0:02:13]} Nb7 {[%emt 0:00:38]} 14. Qd2 {[%emt 0:01:20]} f5 {[%emt 0:00:44]} 15. f3 {[%emt 0:00:30]} f4 {[%emt 0:00:15]} 16. Bf2 {[%emt 0:00:02]} g5 {[%emt 0:01:41]} 17. Rfb1 {[%emt 0:01:20]} Rf6 {[%emt 0:03:30]} 18. Na4 {[%emt 0:05:53]} Qc7 {[%emt 0:02:43]} 19. bxc5 {[%emt 0:01:03]} bxc5 {[%emt 0:00:51]} 20. Rb2 {[%emt 0:01:33]} h5 {[%emt 0:05:17]} 21. h3 {[%emt 0:00:52]} Bh6 {[%emt 0:01:58]} 22. Qd1 {[%emt 0:05:40]} Bd7 {[%emt 0:12:22]} 23. Rab1 {[%emt 0:02:31]} Bxa4 {[%emt 0:00:33]} 24. Qxa4 {[%emt 0:00:08]} Nd6 {[%emt 0:00:06]} 25. Qc6 {[%emt 0:02:50]} Rc8 {[%emt 0:01:36]} 26. Qxc7 {[%emt 0:00:38]} Rxc7 {[%emt 0:00:06]} 27. Rb8+ {[%emt 0:00:09]} Rf8 {[%emt 0:00:13]} 28. Rxf8+ {[%emt 0:00:22]} Bxf8 {[%emt 0:00:09]} 29. Rb8 {[%emt 0:00:16]} Kf7 {[%emt 0:00:22]} 30. Kf1 {[%emt 0:07:35]} g4 {[%emt 0:03:50]} 31. fxg4 {[%emt 0:01:54]} hxg4 {[%emt 0:01:02]} 32. Bxg4 {[%emt 0:00:05]} Nxe4 {[%emt 0:00:12]} 33. Be6+ {[%emt 0:00:07]} Kg7 {[%emt 0:00:03]} 34. Be1 {[%emt 0:00:18]} Nd6 {[%emt 0:00:50]} 35. Bc3 {[%emt 0:01:23]} Nxc4 {[%emt 0:08:27]} 36. Ke2 {[%emt 0:00:05]} Kg6 {[%emt 0:01:17]} 37. Kd3 {[%emt 0:00:45]} Nd6 {[%emt 0:01:09]} 38. Rxf8 {[%emt 0:00:06]} e4+ {[%emt 0:00:47]} 39. Kc2 {[%emt 0:00:28]} Nb5 {[%emt 0:00:58]} 40. Rxf4 {[%emt 0:00:42]} Nd4+ {[%emt 0:00:13]} 41. Kd2 1-0